fUST/lending_fUST_20250209
["ID","MTS","AMOUNT","RATE_DAILY","PERIOD"]
[352318021,1739040643907,-477.45539092,0.0001178,2]
[352318023,1739040643916,-347.897633,0.0001178,2]
[352318025,1739040643925,-500.0,0.0001178,2]
[352318028,1739040643934,-403.52279466,0.0001178,2]
[352318029,1739040643944,-2565.42,0.0001178,2]
[352318032,1739040643954,-2127.29,0.0001178,2]
[352318034,1739040643963,-768.63,0.0001178,2]
[352318035,1739040643973,-560.96,0.0001178,2]
[352318038,1739040643983,-500.0,0.0001178,2]
[352318040,1739040643992,-1151.76,0.0001178,2]
[352318042,1739040644002,-985.89,0.0001178,2]
[352318043,1739040644011,-563.38,0.0001178,2]
[352318045,1739040644021,-500.0,0.0001178,2]
[352318047,1739040644030,-1083.4,0.0001178,2]
[352318049,1739040644039,-9967.34,0.0001178,2]
[352318064,1739040644184,-254.860213,0.0001178,2]
[352318066,1739040644195,-254.860213,0.0001178,2]
[352318068,1739040644205,-500.0,0.0001178,2]
[352318070,1739040644214,-500.0,0.0001178,2]
[352318073,1739040644224,-500.0,0.0001178,2]
[352318075,1739040644235,-2168.09,0.0001178,2]
[352318076,1739040644244,-598.81,0.0001178,2]
[352318078,1739040644254,-500.0,0.0001178,2]
[352318081,1739040644263,-783.11,0.0001178,2]
[352318083,1739040644273,-5705.3,0.0001178,2]
[352318084,1739040644282,-526.8473696,0.0001178,2]
[352318086,1739040644293,-971.67,0.0001178,2]
[352318088,1739040644302,-231.432552,0.0001178,2]
[352318090,1739040644311,-346.820279,0.0001178,2]
[352318092,1739040644321,-2493.83,0.0001178,2]
[352318094,1739040644330,-555.86,0.0001178,2]
[352318096,1739040644341,-231.432552,0.0001178,2]
[352318098,1739040644350,-346.820279,0.0001178,2]
[352318100,1739040644359,-926.69,0.0001178,2]
[352318102,1739040644368,-1651.46,0.0001178,2]
[352318104,1739040644377,-610.32,0.0001178,2]
[352318106,1739040644387,-4013.35,0.0001178,2]
[352318108,1739040644396,-2278.54,0.0001178,2]
[352318110,1739040644407,-556.29,0.0001178,2]
[352318112,1739040644417,-151.0,0.000118,2]
[352318114,1739040644426,-3000.0,0.0001186,2]
[352318116,1739040644436,-2323.8647421,0.0001188,2]
[352318118,1739040644446,-151.0,0.000119,2]
[352318120,1739040644455,-150.0,0.00011903,2]
[352318122,1739040644465,-1975.0,0.00011903,2]
[352318124,1739040644474,-537.0,0.00011903,2]
[352318126,1739040644483,-2296.0,0.00011903,2]
[352318128,1739040644493,-396.0,0.00011903,2]
[352318130,1739040644502,-150.0,0.00011903,2]
[352318132,1739040644511,-151.0,0.00011917,2]
[352318134,1739040644520,-151.0,0.00011917,2]
[352318136,1739040644530,-151.0,0.00011917,2]
[352318138,1739040644548,-224.935047,0.00011917,2]
[352318140,1739040644559,-224.935047,0.00011917,2]
[352318143,1739040644569,-500.0,0.00011917,2]
[352318145,1739040644578,-594.46037337,0.00011917,2]
[352318147,1739040644587,-500.0,0.00011917,2]
[352318149,1739040644598,-151.0,0.00011917,2]
[352318151,1739040644607,-151.12975,0.00011917,2]
[352318153,1739040644618,-696.62,0.00011917,2]
[352318154,1739040644629,-729.54,0.00011917,2]
[352318156,1739040644639,-151.0,0.00011917,2]
[352318159,1739040644648,-1210.84,0.00011917,2]
[352318160,1739040644661,-1211.62,0.00011917,2]
[352318163,1739040644671,-516.94,0.00011917,2]
[352318165,1739040644680,-654.99,0.00011917,2]
[352318166,1739040644689,-500.0,0.00011917,2]
[352318168,1739040644698,-500.0,0.00011917,2]
[352318170,1739040644707,-500.0,0.00011917,2]
[352318172,1739040644717,-864.95,0.00011917,2]
[352318174,1739040644726,-500.0,0.00011917,2]
[352318176,1739040644735,-625.05,0.00011917,2]
[352318178,1739040644745,-1092.65,0.00011917,2]
[352318180,1739040644754,-534.0,0.00011917,2]
[352318182,1739040644764,-727.13,0.00011917,2]
[352318184,1739040644774,-160.220664,0.00011917,2]
[352318186,1739040644784,-500.0,0.00011917,2]
[352318188,1739040644793,-964.51,0.00011917,2]
[352318190,1739040644802,-887.77,0.00011917,2]
[352318192,1739040644811,-500.0,0.00011917,2]
[352318194,1739040644821,-500.0,0.00011917,2]
[352318197,1739040644830,-271.844741,0.00011917,2]
[352318199,1739040644839,-271.844741,0.00011917,2]
[352318201,1739040644850,-580.49,0.00011917,2]
[352318202,1739040644860,-694.75,0.00011917,2]
[352318204,1739040644869,-543.49,0.00011917,2]
[352318207,1739040644879,-500.0,0.00011917,2]
[352318209,1739040644888,-500.0,0.00011917,2]
[352318211,1739040644898,-984.03,0.00011917,2]
[352318212,1739040644909,-881.91,0.00011917,2]
[352318215,1739040644919,-696.76301738,0.00011917,2]
[352318256,1739040645419,-109.45698262,0.00011917,2]
[352318258,1739040645429,-612.71,0.00011917,2]
[352318260,1739040645439,-28711.83,0.00011917,2]
[352318262,1739040645448,-11184.0,0.00011917,2]
[352318264,1739040645457,-538.29,0.00011917,2]
[352318266,1739040645467,-895.93,0.00011917,2]
[352318268,1739040645476,-500.0,0.00011917,2]
[352318270,1739040645486,-1476.98,0.00011917,2]
[352318272,1739040645496,-2504.78,0.00011917,2]
[352318274,1739040645506,-151.0,0.00011917,2]
[352318276,1739040645516,-1068.33,0.00011917,2]
[352318278,1739040645525,-1222.32,0.00011917,2]
[352318280,1739040645535,-965.99,0.00011917,2]
[352318282,1739040645545,-3697.54,0.00011917,2]
[352318284,1739040645559,-500.0,0.00011917,2]
[352318286,1739040645569,-1428.65,0.00011917,2]
[352318289,1739040645579,-658.58,0.00011917,2]
[352318291,1739040645588,-1114.42,0.00011917,2]
[352318293,1739040645598,-500.0,0.00011917,2]
[352318295,1739040645608,-287.816154,0.00011917,2]
[352318297,1739040645617,-529.78,0.00011917,2]
[352318299,1739040645629,-151.0,0.00011917,2]
[352318301,1739040645639,-287.816154,0.00011917,2]
[352318303,1739040645649,-1011.69,0.00011917,2]
[352318305,1739040645663,-1359.63,0.00011917,2]
[352318307,1739040645672,-1025.160739,0.00011917,2]
[352318309,1739040645682,-500.0,0.00011917,2]
[352318311,1739040645691,-1025.160739,0.00011917,2]
[352318313,1739040645701,-151.0,0.00011917,2]
[352318315,1739040645711,-2565.42,0.00011917,2]
[352318317,1739040645720,-2127.29,0.00011917,2]
[352318319,1739040645730,-768.63,0.00011917,2]
[352318321,1739040645739,-560.96,0.00011917,2]
[352318323,1739040645748,-500.0,0.00011917,2]
[352318325,1739040645758,-1151.76,0.00011917,2]
[352318328,1739040645767,-985.89,0.00011917,2]
[352318331,1739040645776,-563.38,0.00011917,2]
[352318334,1739040645786,-500.0,0.00011917,2]
[352318337,1739040645797,-1083.4,0.00011917,2]
[352318340,1739040645807,-9967.34,0.00011917,2]
[352318343,1739040645817,-500.0,0.00011917,2]
[352318346,1739040645826,-500.0,0.00011917,2]
[352318349,1739040645836,-500.0,0.00011917,2]
[352318351,1739040645845,-2168.09,0.00011917,2]
[352318354,1739040645854,-598.81,0.00011917,2]
[352318357,1739040645864,-500.0,0.00011917,2]
[352318360,1739040645873,-783.11,0.00011917,2]
[352318363,1739040645882,-5705.3,0.00011917,2]
[352318366,1739040645892,-151.0,0.00011917,2]
[352318369,1739040645901,-971.67,0.00011917,2]
[352318372,1739040645915,-707.757039,0.00011917,2]
[352318375,1739040645925,-346.820279,0.00011917,2]
[352318378,1739040645934,-2493.83,0.00011917,2]
[352318381,1739040645943,-555.86,0.00011917,2]
[352318384,1739040645953,-707.757039,0.00011917,2]
[352318386,1739040645962,-346.820279,0.00011917,2]
[352318388,1739040645972,-926.69,0.00011917,2]
[352318390,1739040645981,-1651.46,0.00011917,2]
[352318392,1739040645991,-610.32,0.00011917,2]
[352318394,1739040646000,-4013.35,0.00011917,2]
[352318396,1739040646009,-240.050859,0.00011917,2]
[352318398,1739040646019,-240.050859,0.00011917,2]
[352318400,1739040646028,-2278.54,0.00011917,2]
[352318402,1739040646038,-556.29,0.00011917,2]
[352318404,1739040646048,-1000.0,0.00011926,2]
[352318406,1739040646057,-435.4625161,0.00011945,2]
[352318408,1739040646066,-347.65925619,0.00011999,2]
[352318410,1739040646076,-836.07951987,0.00012,12]
[352318412,1739040646086,-151.0,0.00012,2]
[352318414,1739040646095,-905.2,0.00012,2]
[352318416,1739040646105,-2000.0,0.00012,2]
[352318418,1739040646114,-3766.27975644,0.00012,2]
[352318420,1739040646123,-151.0,0.0001204,2]
[352318422,1739040646133,-420.0,0.00012041,2]
[352318424,1739040646142,-305.864448,0.00012054,2]
[352318426,1739040646152,-305.864448,0.00012054,2]
[352318428,1739040646166,-212.339,0.00012054,2]
[352318430,1739040646175,-212.339,0.00012054,2]
[352318432,1739040646184,-151.0,0.00012054,2]
[352318434,1739040646193,-151.0,0.00012054,2]
[352318436,1739040646203,-204.813027,0.00012054,2]
[352318438,1739040646212,-204.813027,0.00012054,2]
[352318440,1739040646221,-500.0,0.00012054,2]
[352318442,1739040646230,-500.0,0.00012054,2]
[352318444,1739040646240,-157.343438,0.00012054,2]
[352318446,1739040646250,-157.343438,0.00012054,2]
[352318448,1739040646259,-729.54,0.00012054,2]
[352318450,1739040646268,-1210.84,0.00012054,2]
[352318451,1739040646278,-1211.62,0.00012054,2]
[352318454,1739040646287,-151.0,0.00012054,2]
[352318456,1739040646297,-516.94,0.00012054,2]
[352318457,1739040646307,-654.99,0.00012054,2]
[352318459,1739040646316,-270.84691775,0.00012054,2]
[352318461,1739040646326,-500.0,0.00012054,2]
[352318464,1739040646335,-500.0,0.00012054,2]
[352318465,1739040646344,-864.95,0.00012054,2]
[352318468,1739040646354,-500.0,0.00012054,2]
[352318469,1739040646363,-151.0,0.00012054,2]
[352318471,1739040646372,-625.05,0.00012054,2]
[352318474,1739040646382,-1092.65,0.00012054,2]
[352318476,1739040646391,-534.0,0.00012054,2]
[352318478,1739040646401,-151.0,0.00012054,2]
[352318480,1739040646414,-151.0,0.00012054,2]
[352318481,1739040646423,-727.13,0.00012054,2]
[352318484,1739040646432,-225.59229712,0.00012054,2]
[352318485,1739040646442,-964.51,0.00012054,2]
[352318488,1739040646451,-887.77,0.00012054,2]
[352318490,1739040646460,-500.0,0.00012054,2]
[352318492,1739040646469,-334.156484,0.00012054,2]
[352318494,1739040646479,-334.156484,0.00012054,2]
[352318496,1739040646488,-500.0,0.00012054,2]
[352318498,1739040646497,-151.0,0.00012054,2]
[352318500,1739040646507,-1329.524983,0.00012054,2]
[352318502,1739040646516,-580.49,0.00012054,2]
[352318504,1739040646527,-1329.524983,0.00012054,2]
[352318506,1739040646536,-543.49,0.00012054,2]
[352318508,1739040646546,-500.0,0.00012054,2]
[352318509,1739040646560,-500.0,0.00012054,2]
[352318512,1739040646570,-161.604728,0.00012054,2]
[352318514,1739040646579,-161.604728,0.00012054,2]
[352318516,1739040646589,-984.03,0.00012054,2]
[352318518,1739040646598,-806.22,0.00012054,2]
[352318520,1739040646608,-612.71,0.00012054,2]
[352318521,1739040646617,-28711.83,0.00012054,2]
[352318524,1739040646628,-8946.51093899,0.00012054,2]
[352318526,1739040646643,-2237.48906101,0.00012054,2]
[352318528,1739040646657,-538.29,0.00012054,2]
[352318530,1739040646668,-457.84031793,0.00012054,2]
[352318533,1739040646679,-438.08968207,0.00012054,2]
[352318535,1739040646689,-500.0,0.00012054,2]
[352318537,1739040646698,-1476.98,0.00012054,2]
[352318539,1739040646707,-1754.32612781,0.00012054,2]
[352318563,1739040646919,-262.248948,0.00012054,2]
[352318565,1739040646931,-488.20492419,0.00012054,2]
[352318567,1739040646940,-1068.33,0.00012054,2]
[352318569,1739040646950,-1222.32,0.00012054,2]
[352318571,1739040646960,-965.99,0.00012054,2]
[352318573,1739040646970,-3697.54,0.00012054,2]
[352318575,1739040646980,-500.0,0.00012054,2]
[352318577,1739040646989,-1428.65,0.00012054,2]
[352318579,1739040646999,-658.58,0.00012054,2]
[352318581,1739040647009,-1114.42,0.00012054,2]
[352318583,1739040647018,-500.0,0.00012054,2]
[352318585,1739040647028,-529.78,0.00012054,2]
[352318587,1739040647038,-1011.69,0.00012054,2]
[352318589,1739040647048,-608.463215,0.00012054,2]
[352318591,1739040647057,-608.463215,0.00012054,2]
[352318593,1739040647067,-1359.63,0.00012054,2]
[352318596,1739040647077,-347.897633,0.00012054,2]
[352318598,1739040647087,-347.897633,0.00012054,2]
[352318600,1739040647097,-1025.160739,0.00012054,2]
[352318602,1739040647106,-500.0,0.00012054,2]
[352318604,1739040647115,-1025.160739,0.00012054,2]
[352318606,1739040647126,-2565.42,0.00012054,2]
[352318608,1739040647135,-2127.29,0.00012054,2]
[352318610,1739040647144,-768.63,0.00012054,2]
[352318612,1739040647154,-560.96,0.00012054,2]
[352318614,1739040647166,-500.0,0.00012054,2]
[352318616,1739040647175,-1151.76,0.00012054,2]
[352318618,1739040647184,-985.89,0.00012054,2]
[352318620,1739040647193,-563.38,0.00012054,2]
[352318622,1739040647203,-1083.4,0.00012054,2]
[352318624,1739040647212,-9967.34,0.00012054,2]
[352318626,1739040647222,-254.860213,0.00012054,2]
[352318628,1739040647232,-254.860213,0.00012054,2]
[352318630,1739040647241,-500.0,0.00012054,2]
[352318632,1739040647251,-500.0,0.00012054,2]
[352318634,1739040647260,-500.0,0.00012054,2]
[352318636,1739040647269,-1968.93676692,0.00012054,2]
[352318638,1739040647281,-199.15323308,0.00012054,2]
[352318640,1739040647291,-598.81,0.00012054,2]
[352318642,1739040647301,-500.0,0.00012054,2]
[352318644,1739040647311,-783.11,0.00012054,2]
[352318646,1739040647321,-4643.98411692,0.00012054,2]
[352318649,1739040647333,-1061.31588308,0.00012054,2]
[352318650,1739040647342,-971.67,0.00012054,2]
[352318653,1739040647352,-231.432552,0.00012054,2]
[352318655,1739040647362,-2493.83,0.00012054,2]
[352318657,1739040647372,-555.86,0.00012054,2]
[352318659,1739040647382,-231.432552,0.00012054,2]
[352318661,1739040647392,-926.69,0.00012054,2]
[352318663,1739040647402,-1651.46,0.00012054,2]
[352318665,1739040647416,-610.32,0.00012054,2]
[352318667,1739040647425,-4013.35,0.00012054,2]
[352318669,1739040647436,-2278.54,0.00012054,2]
[352318671,1739040647446,-556.29,0.00012054,2]
[352318673,1739040647456,-292.59959396,0.00012059,2]
[352318675,1739040647467,-2328.48994508,0.00012091,2]
[352318677,1739040647478,-4984.87382144,0.00012091,2]
[352318679,1739040647487,-2000.0,0.000121,2]
[352318681,1739040647497,-1003.18470137,0.00012139,2]
[352318683,1739040647507,-657.47561309,0.00012157,2]
[352318685,1739040647516,-6714.63780675,0.0001216,2]
[352318686,1739040647525,-1000.0,0.00012178,2]
[352318688,1739040647535,-151.0,0.0001219,2]
[352318691,1739040647552,-151.0,0.0001219,2]
[352318707,1739040647712,-367.723109,0.0001219,2]
[352318709,1739040647723,-367.723109,0.0001219,2]
[352318711,1739040647733,-235.744348,0.0001219,2]
[352318714,1739040647743,-235.744348,0.0001219,2]
[352318715,1739040647752,-151.0,0.00012191,2]
[352318718,1739040647764,-151.0,0.00012191,2]
[352318720,1739040647773,-305.864448,0.00012191,2]
[352318722,1739040647784,-305.864448,0.00012191,2]
[352318724,1739040647794,-212.339,0.00012191,2]
[352318726,1739040647805,-212.339,0.00012191,2]
[352318728,1739040647815,-151.0,0.00012191,2]
[352318730,1739040647824,-244.732277,0.00012191,2]
[352318732,1739040647834,-244.732277,0.00012191,2]
[352318734,1739040647844,-151.0,0.00012191,2]
[352318736,1739040647854,-204.813027,0.00012191,2]
[352318738,1739040647864,-204.813027,0.00012191,2]
[352318740,1739040647874,-151.0,0.00012191,2]
[352318742,1739040647884,-295.40786,0.00012191,2]
[352318744,1739040647895,-224.935047,0.00012191,2]
[352318746,1739040647906,-224.935047,0.00012191,2]
[352318748,1739040647917,-500.0,0.00012191,2]
[352318750,1739040647927,-500.0,0.00012191,2]
[352318752,1739040647937,-157.343438,0.00012191,2]
[352318754,1739040647947,-151.0,0.00012191,2]
[352318756,1739040647957,-157.343438,0.00012191,2]
[352318758,1739040647967,-729.54,0.00012191,2]
[352318760,1739040647976,-1210.84,0.00012191,2]
[352318762,1739040647986,-1211.62,0.00012191,2]
[352318764,1739040647996,-516.94,0.00012191,2]
[352318766,1739040648006,-654.99,0.00012191,2]
[352318768,1739040648016,-500.0,0.00012191,2]
[352318770,1739040648025,-500.0,0.00012191,2]
[352318772,1739040648035,-864.95,0.00012191,2]
[352318774,1739040648046,-500.0,0.00012191,2]
[352318776,1739040648056,-285.219417,0.00012191,2]
[352318778,1739040648066,-625.05,0.00012191,2]
[352318780,1739040648076,-1092.65,0.00012191,2]
[352318782,1739040648087,-534.0,0.00012191,2]
[352318784,1739040648097,-151.0,0.00012191,2]
[352318786,1739040648107,-151.0,0.00012191,2]
[352318788,1739040648118,-727.13,0.00012191,2]
[352318790,1739040648129,-964.51,0.00012191,2]
[352318792,1739040648139,-887.77,0.00012191,2]
[352318794,1739040648149,-175.03,0.00012191,2]
[352318796,1739040648160,-334.156484,0.00012191,2]
[352318798,1739040648170,-334.156484,0.00012191,2]
[352318800,1739040648181,-500.0,0.00012191,2]
[352318802,1739040648191,-271.844741,0.00012191,2]
[352318804,1739040648201,-271.844741,0.00012191,2]
[352318806,1739040648211,-1329.524983,0.00012191,2]
[352318808,1739040648221,-580.49,0.00012191,2]
[352318810,1739040648230,-1329.524983,0.00012191,2]
[352318812,1739040648241,-150.14,0.00012191,2]
[352318814,1739040648250,-543.49,0.00012191,2]
[352318816,1739040648260,-500.0,0.00012191,2]
[352318818,1739040648271,-161.604728,0.00012191,2]
[352318820,1739040648282,-161.604728,0.00012191,2]
[352318822,1739040648292,-984.03,0.00012191,2]
[352318824,1739040648302,-806.22,0.00012191,2]
[352318826,1739040648312,-612.71,0.00012191,2]
[352318828,1739040648322,-28711.83,0.00012191,2]
[352318830,1739040648332,-2129.58920355,0.00012191,2]
[352318839,1739040648419,-1590.781443,0.00012191,2]
[352318925,1739040649994,-7463.62935345,0.00012191,2]
[352318927,1739040650003,-538.29,0.00012191,2]
[352318929,1739040650013,-500.0,0.00012191,2]
[352318931,1739040650022,-1476.98,0.00012191,2]
[352318932,1739040650031,-2504.78,0.00012191,2]
[352318934,1739040650041,-151.0,0.00012191,2]
[352318936,1739040650050,-1068.33,0.00012191,2]
[352318938,1739040650060,-1222.32,0.00012191,2]
[352318940,1739040650069,-965.99,0.00012191,2]
[352318942,1739040650078,-1096.37228355,0.00012191,2]
[352318943,1739040650241,-500.0,0.00012146,2]
[352318944,1739040650251,-2601.16771645,0.00012191,2]
[352318945,1739040650261,-1428.65,0.00012191,2]
[352318946,1739040650272,-500.0,0.00012191,2]
[352318947,1739040650281,-658.58,0.00012191,2]
[352318948,1739040650290,-1114.42,0.00012191,2]
[352318949,1739040650300,-500.0,0.00012191,2]
[352318950,1739040650310,-287.816154,0.00012191,2]
[352318951,1739040650320,-529.78,0.00012191,2]
[352318952,1739040650329,-287.816154,0.00012191,2]
[352318953,1739040650338,-1011.69,0.00012191,2]
[352318954,1739040650348,-608.463215,0.00012191,2]
[352318955,1739040650361,-608.463215,0.00012191,2]
[352318956,1739040650370,-332.87062562,0.00012191,2]
[352318957,1739040650381,-1026.75937438,0.00012191,2]
[352318958,1739040650390,-347.897633,0.00012191,2]
[352318959,1739040650399,-347.897633,0.00012191,2]
[352318960,1739040650410,-1025.160739,0.00012191,2]
[352318961,1739040650419,-500.0,0.00012191,2]
[352318962,1739040650429,-274.39375078,0.00012191,2]
[352318963,1739040650440,-750.76698822,0.00012191,2]
[352318964,1739040650450,-500.0,0.00012191,2]
[352318965,1739040650459,-500.0,0.00012191,2]
[352318966,1739040650468,-150.14,0.00012191,2]
[352318967,1739040650477,-187.24602955,0.00012191,2]
[352318968,1739040650486,-150.14,0.00012191,2]
[352318969,1739040650495,-743.0,0.00012191,2]
[352318970,1739040650504,-151.0,0.00012191,2]
[352318971,1739040650513,-1881.5322788,0.00012191,2]
[352319005,1739040651456,-683.8877212,0.00012191,2]
[352319007,1739040651466,-2127.29,0.00012191,2]
[352319009,1739040651476,-500.0,0.00012191,2]
[352319011,1739040651485,-150.14,0.00012191,2]
[352319013,1739040651494,-500.0,0.00012191,2]
[352319015,1739040651503,-768.63,0.00012191,2]
[352319017,1739040651513,-150.14,0.00012191,2]
[352319019,1739040651522,-560.96,0.00012191,2]
[352319021,1739040651532,-500.0,0.00012191,2]
[352319023,1739040651541,-500.0,0.00012191,2]
[352319025,1739040651552,-500.0,0.00012191,2]
[352319027,1739040651562,-1151.76,0.00012191,2]
[352319029,1739040651571,-985.89,0.00012191,2]
[352319031,1739040651580,-500.0,0.00012191,2]
[352319033,1739040651591,-563.38,0.00012191,2]
[352319035,1739040651600,-1083.4,0.00012191,2]
[352319037,1739040651610,-9967.34,0.00012191,2]
[352319039,1739040651619,-254.860213,0.00012191,2]
[352319041,1739040651629,-254.860213,0.00012191,2]
[352319043,1739040651638,-500.0,0.00012191,2]
[352319045,1739040651648,-500.0,0.00012191,2]
[352319048,1739040651659,-500.0,0.00012191,2]
[352319050,1739040651668,-2168.09,0.00012191,2]
[352319051,1739040651677,-598.81,0.00012191,2]
[352319053,1739040651687,-500.0,0.00012191,2]
[352319055,1739040651696,-783.11,0.00012191,2]
[352319058,1739040651706,-5705.3,0.00012191,2]
[352319059,1739040651715,-971.67,0.00012191,2]
[352319062,1739040651724,-231.432552,0.00012191,2]
[352319064,1739040651733,-707.757039,0.00012191,2]
[352319065,1739040651742,-346.820279,0.00012191,2]
[352319067,1739040651752,-2493.83,0.00012191,2]
[352319069,1739040651761,-555.86,0.00012191,2]
[352319071,1739040651770,-231.432552,0.00012191,2]
[352319074,1739040651779,-707.757039,0.00012191,2]
[352319075,1739040651789,-346.820279,0.00012191,2]
[352319077,1739040651798,-926.69,0.00012191,2]
[352319080,1739040651807,-1651.46,0.00012191,2]
[352319082,1739040651816,-610.32,0.00012191,2]
[352319084,1739040651825,-4013.35,0.00012191,2]
[352319085,1739040651834,-240.050859,0.00012191,2]
[352319087,1739040651843,-240.050859,0.00012191,2]
[352319089,1739040651853,-500.0,0.00012191,2]
[352319091,1739040651862,-2278.54,0.00012191,2]
[352319093,1739040651871,-164.3033726,0.00012191,2]
[352319095,1739040651881,-204.77617432,0.00012191,2]
[352319097,1739040651890,-160.46814191,0.00012191,2]
[352319099,1739040651899,-500.0,0.00012191,2]
[352319101,1739040651910,-166.78794859,0.00012191,2]
[352319103,1739040651919,-556.29,0.00012191,2]
[352319105,1739040651929,-150.14,0.00012191,2]
[352319107,1739040651939,-500.0,0.00012191,2]
[352319109,1739040651948,-1500.0,0.000122,2]
[352319111,1739040651959,-22605.34381531,0.00012205,2]
[352319114,1739040651968,-306.0,0.00012247,2]
[352319115,1739040651978,-153.0,0.00012247,2]
[352319118,1739040651987,-154.5736464,0.00012247,2]
[352319119,1739040651997,-153.0,0.00012247,2]
[352319121,1739040652006,-154.5736464,0.00012247,2]
[352319123,1739040652016,-215.7975175,0.00012247,2]
[352319126,1739040652025,-154.5736464,0.00012247,2]
[352319127,1739040652035,-215.7975175,0.00012247,2]
[352319129,1739040652044,-215.7975175,0.00012247,2]
[352319131,1739040652054,-215.7975175,0.00012247,2]
[352319134,1739040652063,-523.3373088,0.00012247,2]
[352319136,1739040652073,-750.0000009,0.0001228,2]
[352319137,1739040652083,-151.0,0.00012327,2]
[352319139,1739040652092,-215.284245,0.00012327,2]
[352319142,1739040652102,-1329.524983,0.00012327,2]
[352319143,1739040652111,-1329.524983,0.00012327,2]
[352319146,1739040652121,-161.604728,0.00012327,2]
[352319147,1739040652130,-161.604728,0.00012327,2]
[352319148,1739040652139,-287.816154,0.00012327,2]
[352319149,1739040652148,-287.816154,0.00012327,2]
[352319150,1739040652157,-347.897633,0.00012327,2]
[352319151,1739040652166,-347.897633,0.00012327,2]
[352319152,1739040652176,-151.0,0.00012328,2]
[352319153,1739040652185,-236.058685,0.00012328,2]
[352319155,1739040652195,-367.723109,0.00012328,2]
[352319157,1739040652205,-367.723109,0.00012328,2]
[352319159,1739040652214,-235.744348,0.00012328,2]
[352319161,1739040652223,-235.744348,0.00012328,2]
[352319163,1739040652233,-305.864448,0.00012328,2]
[352319165,1739040652242,-305.864448,0.00012328,2]
[352319167,1739040652251,-151.0,0.00012328,2]
[352319169,1739040652261,-151.0,0.00012328,2]
[352319171,1739040652270,-749.130279,0.00012328,2]
[352319173,1739040652279,-749.130279,0.00012328,2]
[352319175,1739040652289,-151.0,0.00012328,2]
[352319177,1739040652298,-500.0,0.00012328,2]
[352319179,1739040652308,-500.0,0.00012328,2]
[352319181,1739040652318,-729.54,0.00012328,2]
[352319183,1739040652327,-1210.84,0.00012328,2]
[352319185,1739040652337,-1211.62,0.00012328,2]
[352319187,1739040652347,-151.0,0.00012328,2]
[352319189,1739040652356,-516.94,0.00012328,2]
[352319191,1739040652366,-654.99,0.00012328,2]
[352319193,1739040652375,-500.0,0.00012328,2]
[352319195,1739040652385,-500.0,0.00012328,2]
[352319197,1739040652396,-864.95,0.00012328,2]
[352319199,1739040652407,-500.0,0.00012328,2]
[352319201,1739040652416,-625.05,0.00012328,2]
[352319203,1739040652426,-662.99910079,0.00012328,2]
[352319205,1739040652438,-403.9115668,0.00012328,2]
[352319207,1739040652450,-25.73933241,0.00012328,2]
[352319209,1739040652461,-510.1041358,0.00012328,2]
[352319239,1739040652743,-23.8958642,0.00012328,2]
[352319241,1739040652752,-727.13,0.00012328,2]
[352319243,1739040652761,-964.51,0.00012328,2]
[352319245,1739040652771,-622.7071598,0.00012328,2]
[352319247,1739040652782,-265.0628402,0.00012328,2]